bitfinex/quotes_SOLUSD_20250607
["timestamp","ask_amount","ask_price","bid_price","bid_amount"]
[1749300124435,18.64964886,152.44,152.38,14.29410262]
[1749300124639,7.73156161,152.42,152.38,14.29410262]
[1749300125131,7.73156161,152.42,152.38,6.56254101]
[1749300126444,7.73156161,152.4,152.37,6.56287795]
[1749300127031,18.64964886,152.43,152.37,6.56287795]
[1749300127232,18.64964886,152.4,152.37,14.29443956]
[1749300127529,7.73156161,152.41,152.37,14.29443956]
[1749300127906,7.73156161,152.41,152.37,6.56287795]
[1749300128101,7.73156161,152.4,152.37,6.56287795]
[1749300128302,7.73156161,152.4,152.36,6.56337829]
[1749300128729,7.73156161,152.39,152.36,6.56337829]
[1749300128926,7.73156161,152.38,152.32,16.41210271]
[1749300129109,7.73156161,152.38,152.3,7.9898]
[1749300129315,7.73156161,152.37,152.33,7.73156161]
[1749300129722,7.73156161,152.37,152.32,7.73156161]
[1749300130029,7.73156161,152.37,152.33,6.56469506]
[1749300130204,7.73156161,152.36,152.33,6.56469506]
[1749300130407,18.64964886,152.36,152.33,6.56469506]
[1749300131025,18.64964886,152.38,152.34,7.73156161]
[1749300131237,18.64964886,152.38,152.35,7.73156161]
[1749300131429,30.50964886,152.39,152.35,7.73156161]
[1749300132159,30.50964886,152.39,152.36,6.56340246]
[1749300132920,54.2194727,152.45,152.38,7.73156161]
[1749300132921,11.86,152.44,152.38,7.73156161]
[1749300133178,18.64964886,152.42,152.38,7.73156161]
[1749300133435,18.64964886,152.42,152.37,42.54]
[1749300133436,26.38121047,152.42,152.37,50.27156161]
[1749300133943,18.64964886,152.42,152.39,7.73156161]
[1749300134119,11.86,152.44,152.41,7.73156161]
[1749300134315,11.86,152.44,152.42,7.73156161]
[1749300134747,11.86,152.44,152.41,7.73156161]
[1749300134921,18.64964886,152.43,152.4,6.56167979]
[1749300135425,18.64964886,152.43,152.39,6.56198076]
[1749300135626,18.64964886,152.43,152.39,14.29354237]
[1749300136021,18.64964886,152.43,152.39,7.73156161]
[1749300136341,18.64964886,152.4,152.38,42.5]
[1749300137057,18.64964886,152.4,152.37,7.73156161]
[1749300137267,12.86904706,152.42,152.36,61.91244952]
[1749300137429,6.56046847,152.43,152.37,19.43161985]
[1749300137627,31.51869592,152.42,152.37,19.43161985]
[1749300138731,31.51869592,152.42,152.37,6.56257279]
[1749300139448,25.21011733,152.43,152.37,19.43161985]
[1749300139751,31.51869592,152.42,152.37,19.43161985]
[1749300140934,18.64964886,152.42,152.38,12.86904706]
[1749300141630,11.86,152.44,152.4,12.86904706]
[1749300141842,18.64964886,152.43,152.4,12.86904706]
[1749300142041,18.64964886,152.43,152.41,42.36]
[1749300142238,11.86,152.44,152.41,42.36]
[1749300142239,18.64964886,152.48,152.42,6.56081879]
[1749300142431,12.86904706,152.46,152.42,6.56081879]
[1749300143635,18.64964886,152.48,152.42,6.56081879]
[1749300143835,12.86904706,152.46,152.42,6.56081879]
[1749300144141,18.64964886,152.44,152.41,48.92115078]
[1749300144357,31.51869592,152.44,152.41,48.92115078]
[1749300144659,18.64964886,152.44,152.41,48.92115078]
[1749300146466,18.64964886,152.44,152.41,42.36]
[1749300146666,12.86904706,152.44,152.41,42.36]
[1749300146841,12.86904706,152.42,152.35,0.28432314]
[1749300147038,12.86904706,152.42,152.37,12.86904706]
[1749300147365,6.5600346,152.44,152.38,19.43117227]
[1749300147571,31.51869592,152.43,152.38,19.43117227]
[1749300147976,32.55938502,152.46,152.39,12.86904706]
[1749300148142,12.86904706,152.44,152.39,12.86904706]
[1749300148456,18.64964886,152.43,152.39,12.86904706]
[1749300148669,6.55875103,152.47,152.4,55.16904706]
[1749300148848,12.86904706,152.45,152.4,55.16904706]
[1749300149038,12.86904706,152.45,152.41,12.86904706]
[1749300149238,12.86904706,152.47,152.42,12.86904706]
[1749300149448,18.64964886,152.48,152.43,6.56038837]
[1749300149655,12.86904706,152.46,152.43,6.56038837]
[1749300150143,12.86904706,152.47,152.44,42.3]
[1749300150355,18.64964886,152.45,152.44,42.3]
[1749300150757,12.86904706,152.47,152.44,42.3]
[1749300150958,18.64964886,152.48,152.44,55.16904706]
[1749300151157,31.51869592,152.48,152.44,55.16904706]
[1749300151368,31.51869592,152.48,152.45,6.55952771]
[1749300151743,12.86904706,152.48,152.45,6.55952771]
[1749300152055,18.64964886,152.49,152.45,19.42857477]
[1749300152255,31.51869592,152.49,152.45,19.42857477]
[1749300152870,18.64964886,152.49,152.45,19.42857477]
[1749300153559,31.51869592,152.49,152.45,19.42857477]
[1749300153765,18.64964886,152.49,152.45,19.42857477]
[1749300153960,31.51869592,152.49,152.45,19.42857477]
[1749300154880,12.86904706,152.51,152.47,12.86904706]
[1749300155046,12.86904706,152.52,152.48,42.34]
[1749300155877,12.86904706,152.52,152.48,55.20904706]
[1749300156247,12.86904706,152.52,152.48,42.34]
[1749300156674,18.64964886,152.53,152.48,42.34]
[1749300156675,12.86904706,152.5,152.48,42.34]
[1749300157044,12.86904706,152.49,152.48,42.34]
[1749300157271,18.64964886,152.52,152.48,42.34]
[1749300157660,7.71291303,152.5,152.48,42.34]
[1749300158280,7.71291303,152.51,152.48,48.89820115]
[1749300158587,7.71291303,152.5,152.48,42.34]
[1749300159249,18.64964886,152.52,152.48,48.89822211]
[1749300159479,7.71291303,152.51,152.48,48.89822211]
[1749300159773,7.71291303,152.5,152.48,48.89822211]
[1749300160180,7.71291303,152.5,152.48,42.34]
[1749300160373,7.71291303,152.5,152.48,48.89820474]
[1749300161675,7.71291303,152.51,152.48,48.89820474]
[1749300163871,7.71291303,152.5,152.48,42.34]
[1749300164383,7.71291303,152.49,152.48,42.34]
[1749300164560,26.36256189,152.49,152.48,42.34]
[1749300166469,18.64964886,152.49,152.48,42.34]
[1749300166864,7.71291303,152.5,152.48,48.89819581]
[1749300167077,7.71291303,152.5,152.48,42.34]
[1749300167469,7.71291303,152.5,152.48,48.89822346]
[1749300167665,18.64964886,152.52,152.48,48.89822346]
[1749300167872,7.71291303,152.51,152.48,48.89822346]
[1749300168991,18.64964886,152.54,152.48,48.89822346]
[1749300169185,7.71291303,152.52,152.48,48.89822346]
[1749300169390,18.64964886,152.5,152.48,48.89822346]
[1749300169979,25.20534313,152.54,152.48,48.89822346]
[1749300170182,18.64964886,152.5,152.48,48.89822346]
[1749300171688,25.20534313,152.54,152.48,48.89822346]
[1749300171893,7.71291303,152.52,152.48,48.89822346]
[1749300172185,7.71291303,152.51,152.48,48.89822346]
[1749300174099,7.71291303,152.52,152.48,48.89822346]
[1749300174291,7.71291303,152.51,152.48,48.89822346]
[1749300175097,7.71291303,152.51,152.48,42.34]
[1749300175283,7.71291303,152.51,152.48,48.89822039]
[1749300175674,7.71291303,152.51,152.48,42.34]
[1749300175872,7.71291303,152.5,152.48,42.34]
[1749300176173,18.64964886,152.49,152.48,42.34]
[1749300176605,6.55707493,152.51,152.47,41.96]
[1749300176809,7.71291303,152.49,152.45,14.2723479]
[1749300176971,18.64964886,152.51,152.46,41.96]
[1749300177406,7.71291303,152.5,152.46,41.96]
[1749300177873,18.64964886,152.49,152.46,49.67291303]
[1749300178233,18.64964886,152.5,152.47,14.2715803]
[1749300178403,7.71291303,152.52,152.47,14.2715803]
[1749300178905,6.0229,152.58,152.47,30.64123546]
[1749300179079,7.71291303,152.52,152.47,38.35414849]
[1749300179280,7.71291303,152.51,152.47,38.35414849]
[1749300179518,7.71291303,152.49,152.47,6.55866727]
[1749300179684,7.71291303,152.49,152.47,48.45866727]
[1749300179876,18.64964886,152.48,152.47,41.9]
[1749300180391,18.64964886,152.48,152.47,48.45866727]
[1749300180576,7.71291303,152.5,152.47,48.45866727]
[1749300180772,18.64964886,152.49,152.47,48.45866727]
[1749300181079,7.71291303,152.49,152.47,48.45866727]
[1749300181612,18.64964886,152.49,152.47,48.45866727]
[1749300181986,7.71291303,152.49,152.47,48.45866727]
[1749300182390,7.71291303,152.48,152.45,6.55924654]
[1749300182710,7.71291303,152.46,152.41,6.56087309]
[1749300182889,18.64964886,152.43,152.42,41.88]
[1749300183213,7.71291303,152.46,152.42,41.88]
[1749300183994,7.71291303,152.46,152.42,48.44059011]
[1749300184901,7.71291303,152.46,152.42,41.88]
[1749300185404,18.64964886,152.44,152.42,41.88]
[1749300185603,7.71291303,152.44,152.42,41.88]
[1749300185987,18.64964886,152.44,152.42,41.88]
[1749300186189,18.64964886,152.44,152.42,48.44080879]
[1749300186381,18.64964886,152.46,152.43,7.71291303]
[1749300186584,18.64964886,152.47,152.43,7.71291303]
[1749300186880,7.71291303,152.47,152.43,7.71291303]
[1749300187209,7.71291303,152.47,152.42,56.15372182]
[1749300187812,26.36256189,152.47,152.42,56.15372182]
[1749300188587,18.64964886,152.47,152.42,56.15372182]
[1749300188787,18.64964886,152.47,152.43,7.71291303]
[1749300188984,32.92126292,152.47,152.42,56.15372182]
[1749300189185,18.64964886,152.44,152.42,41.88]
[1749300189386,26.36256189,152.44,152.39,6.0462]
[1749300189602,26.36256189,152.44,152.38,6.56215624]
[1749300189805,26.36256189,152.44,152.4,41.8]
[1749300190107,26.36256189,152.44,152.4,49.51291303]
[1749300190617,26.36256189,152.45,152.4,49.51291303]
[1749300190819,26.36256189,152.45,152.41,7.71291303]
[1749300190991,18.64964886,152.46,152.41,7.71291303]
[1749300191199,7.71291303,152.45,152.41,7.71291303]
[1749300191705,7.71291303,152.45,152.42,6.56081879]
[1749300191906,26.36256189,152.46,152.42,6.56081879]
[1749300192214,18.64964886,152.46,152.42,14.27373182]
[1749300192508,18.64964886,152.46,152.43,7.71291303]
[1749300192711,18.64964886,152.46,152.44,41.78]
[1749300192913,26.36256189,152.46,152.44,41.78]
[1749300193240,18.64964886,152.46,152.44,41.78]
[1749300193601,18.64964886,152.46,152.44,49.49291303]
[1749300193800,18.64964886,152.46,152.44,56.05278021]
[1749300194095,18.64964886,152.46,152.44,41.78]
[1749300194303,18.64964886,152.46,152.44,48.33992547]
[1749300194510,18.64964886,152.46,152.44,56.0528385]
[1749300195088,18.64964886,152.46,152.44,41.78]
[1749300195910,18.64964886,152.46,152.44,48.3399118]
[1749300196992,18.64964886,152.46,152.44,56.05282483]
[1749300197815,18.64964886,152.46,152.44,48.3399118]
[1749300198327,32.77822795,152.55,152.45,7.71291303]
[1749300198328,18.64964886,152.53,152.45,7.71291303]
[1749300198630,45.13291303,152.54,152.49,7.71291303]
[1749300198801,26.36256189,152.53,152.5,41.7]
[1749300198995,18.64964886,152.53,152.5,41.7]
[1749300199422,18.64964886,152.53,152.5,49.41291303]
[1749300200700,18.64964886,152.53,152.5,55.97021923]
[1749300200902,18.64964886,152.53,152.5,41.7]
[1749300201094,18.64964886,152.53,152.5,49.41291303]
[1749300201290,18.64964886,152.53,152.5,41.7]
[1749300202124,18.64964886,152.53,152.5,49.41291303]
[1749300202300,18.64964886,152.53,152.5,41.7]
[1749300202495,18.64964886,152.53,152.5,49.41291303]
[1749300202690,18.64964886,152.53,152.5,41.7]
[1749300202920,25.20584843,152.53,152.5,41.7]
[1749300203129,18.64964886,152.53,152.5,41.7]
[1749300203322,25.20581664,152.53,152.5,41.7]
[1749300203525,18.64964886,152.53,152.5,41.7]
[1749300203917,25.20586629,152.53,152.5,41.7]
[1749300204100,26.36256189,152.53,152.5,41.7]
[1749300204417,18.64964886,152.53,152.5,41.7]
[1749300204637,18.64964886,152.53,152.5,49.41291303]
[1749300205716,18.64964886,152.53,152.5,41.7]
[1749300205914,18.64964886,152.53,152.5,48.25731251]
[1749300208412,33.71291303,152.55,152.5,48.25726183]
[1749300208637,18.64964886,152.54,152.5,55.97017486]
[1749300209554,18.64964886,152.54,152.52,6.55651717]
[1749300209838,18.64964886,152.55,152.53,41.5]
[1749300210235,26.36256189,152.55,152.53,41.5]
[1749300211318,18.64964886,152.55,152.53,41.5]
[1749300218055,18.64964886,152.56,152.53,55.76884177]
[1749300218346,7.71291303,152.57,152.53,55.76884177]
[1749300218641,26.36256189,152.57,152.53,55.76884177]
[1749300219718,18.64964886,152.57,152.53,55.76884177]
[1749300219918,18.64964886,152.57,152.54,7.71291303]
[1749300221046,18.64964886,152.59,152.55,7.71291303]
[1749300221250,18.64964886,152.59,152.56,41.36]
[1749300221251,26.36256189,152.59,152.56,41.36]
[1749300222924,7.71291303,152.58,152.56,41.36]
[1749300223964,26.36256189,152.57,152.56,41.36]
[1749300224852,18.64964886,152.56,152.55,41.3]
[1749300225027,26.36256189,152.56,152.55,41.3]
[1749300225826,18.64964886,152.56,152.55,41.3]
[1749300226835,7.71291303,152.56,152.55,41.3]
[1749300227137,7.71291303,152.57,152.55,41.3]
[1749300227519,7.71291303,152.57,152.53,14.26896096]
[1749300227715,7.71291303,152.57,152.54,41.3]
[1749300228119,7.71291303,152.56,152.5,26.0]
[1749300228321,26.36256189,152.55,152.51,49.01291303]
[1749300229226,26.36256189,152.55,152.51,55.56954024]
[1749300229923,18.64964886,152.54,152.49,12.72862065]
[1749300230129,7.71291303,152.53,152.5,41.28]
[1749300230346,7.71291303,152.54,152.5,41.28]
[1749300230741,6.55525335,152.55,152.5,48.99291303]
[1749300230945,7.71291303,152.54,152.5,48.99291303]
[1749300231358,7.71291303,152.54,152.5,55.55015525]
[1749300231526,7.71291303,152.54,152.5,47.83724222]
[1749300231938,26.36256189,152.52,152.51,41.28]
[1749300232562,18.64964886,152.52,152.51,41.28]
[1749300232942,7.71291303,152.54,152.51,41.28]
[1749300233729,18.64964886,152.52,152.51,41.28]
[1749300235340,6.55575833,152.54,152.51,41.28]
[1749300235741,18.64964886,152.52,152.51,41.28]
[1749300238565,14.2694302,152.52,152.46,6.55909746]
[1749300238862,7.71291303,152.51,152.47,41.22]
[1749300239067,18.64964886,152.5,152.48,41.24]
[1749300240059,7.71291303,152.52,152.48,48.95291303]
[1749300241267,25.20495209,152.55,152.49,6.55780706]
[1749300241443,18.64964886,152.52,152.49,14.27072009]
[1749300242358,18.64964886,152.52,152.49,6.55780706]
[1749300242659,18.64964886,152.52,152.49,14.27072009]
[1749300243045,7.71291303,152.53,152.49,14.27072009]
[1749300243271,18.64964886,152.52,152.49,14.27072009]
[1749300243768,7.71291303,152.53,152.49,14.27072009]
[1749300244547,18.64964886,152.54,152.49,14.27072009]
[1749300244752,18.64964886,152.54,152.49,6.55780706]
[1749300244753,18.64964886,152.52,152.49,6.55780706]
[1749300244953,7.71291303,152.52,152.48,55.51102612]
[1749300245785,25.20503192,152.55,152.48,55.51102612]
[1749300246161,18.64964886,152.52,152.48,55.51102612]
[1749300247467,7.71291303,152.54,152.49,7.71291303]
[1749300247644,18.64964886,152.52,152.49,7.71291303]
[1749300247849,18.64964886,152.52,152.48,47.79811309]
[1749300248047,18.64964886,152.52,152.48,55.51102612]
[1749300250577,18.64964886,152.52,152.49,7.71291303]
[1749300251154,12.5533,152.56,152.5,14.27029007]
[1749300251463,18.64964886,152.55,152.51,7.71291303]
[1749300251674,18.64964886,152.55,152.52,41.16]
[1749300252374,18.64964886,152.55,152.52,47.71614941]
[1749300254382,26.36256189,152.57,152.52,55.42906244]
[1749300255546,26.36256189,152.57,152.53,7.71291303]
[1749300255972,26.36256189,152.57,152.54,6.55565753]
[1749300256485,18.64964886,152.58,152.54,6.55565753]
[1749300256779,26.36256189,152.58,152.54,6.55565753]
[1749300257770,7.71291303,152.57,152.54,6.55565753]
[1749300259684,18.64964886,152.55,152.53,6.55592383]
[1749300259879,18.64964886,152.55,152.5,16.39325278]
[1749300259880,7.71291303,152.54,152.51,6.55668512]
[1749300260093,18.64964886,152.53,152.51,41.02]
[1749300260277,7.71291303,152.53,152.5,6.55721758]
[1749300260465,7.71291303,152.53,152.5,41.02]
[1749300260868,7.71291303,152.53,152.5,47.5773372]
[1749300261075,7.71291303,152.53,152.5,41.04]
[1749300261076,18.64964886,152.52,152.5,41.04]
[1749300262097,7.71291303,152.54,152.5,47.59736163]
[1749300262388,7.71291303,152.54,152.5,55.31027466]
[1749300262889,7.71291303,152.54,152.5,47.59736163]
[1749300263472,26.36256189,152.53,152.5,41.04]
[1749300263869,18.64964886,152.51,152.48,7.71291303]
[1749300264077,26.36256189,152.51,152.47,14.27143178]
[1749300264277,26.36256189,152.51,152.48,41.02]
[1749300264474,18.64964886,152.49,152.48,41.02]
[1749300264775,18.64964886,152.49,152.46,14.271737]
[1749300264982,18.64964886,152.49,152.45,14.27230534]
[1749300265493,26.36256189,152.49,152.46,41.02]
[1749300265870,18.64964886,152.49,152.46,41.02]
[1749300266061,18.64964886,152.47,152.45,41.02]
[1749300266262,7.71291303,152.49,152.45,47.57943972]
[1749300266490,18.64964886,152.48,152.45,47.57943972]
[1749300267385,18.64964886,152.48,152.45,41.02]
[1749300267769,6.55754094,152.5,152.45,41.02]
[1749300267969,18.64964886,152.48,152.45,55.29243835]
[1749300268173,14.27045397,152.5,152.45,55.29243835]
[1749300268469,18.64964886,152.48,152.45,41.02]
[1749300268874,26.36256189,152.48,152.44,14.27273018]
[1749300269077,26.36256189,152.48,152.45,41.06]
[1749300269273,26.36256189,152.48,152.44,14.27273018]
[1749300269480,26.36256189,152.48,152.44,47.61981715]
[1749300270282,26.36256189,152.48,152.44,55.33273018]
[1749300270991,26.36256189,152.48,152.44,14.27273018]
[1749300271169,26.36256189,152.48,152.45,41.04]
[1749300271372,18.64964886,152.48,152.45,41.04]
[1749300271674,18.64964886,152.48,152.45,48.75291303]
[1749300272369,18.64964886,152.48,152.45,55.31235958]
[1749300273094,18.64964886,152.48,152.45,48.75291303]
[1749300273392,18.64964886,152.48,152.45,55.31242304]
[1749300273566,25.20715636,152.5,152.45,47.59951001]
[1749300273768,14.27042053,152.5,152.45,55.31242304]
[1749300274390,18.64964886,152.48,152.45,55.31242304]
[1749300274809,18.64964886,152.48,152.45,47.59951001]
[1749300275006,18.64964886,152.48,152.45,55.31242304]
[1749300277375,26.36256189,152.5,152.45,55.31242304]
[1749300279103,18.64964886,152.52,152.48,7.71291303]
[1749300279406,18.64964886,152.52,152.48,48.67291303]
[1749300279575,18.64964886,152.53,152.5,7.71291303]
[1749300279774,18.64964886,152.53,152.51,41.0]
[1749300280417,18.64964886,152.55,152.52,7.71291303]
[1749300280970,18.64964886,152.55,152.51,47.55689474]
[1749300281202,18.64964886,152.55,152.51,55.26980777]
[1749300282081,18.64964886,152.55,152.52,7.71291303]
[1749300282594,18.64964886,152.57,152.52,14.26905665]
[1749300282798,26.46384189,152.57,152.52,14.26905665]
[1749300284895,26.46384189,152.57,152.54,6.55565753]
[1749300285800,18.75092886,152.57,152.55,40.94]
[1749300285978,26.46384189,152.57,152.55,40.94]
[1749300287681,0.10128,152.57,152.55,55.20801594]
[1749300288015,0.10128,152.57,152.56,7.71291303]
[1749300288176,0.10128,152.57,152.55,55.20801594]
[1749300289506,0.10128,152.57,152.55,47.49510291]
[1749300289702,0.10128,152.57,152.55,55.20801594]
[1749300291288,0.10128,152.57,152.55,47.49510291]
[1749300291606,0.10128,152.57,152.55,55.20801594]
[1749300293179,0.10128,152.57,152.55,40.94]
[1749300293580,0.10128,152.57,152.55,47.4950887]
[1749300295789,0.10128,152.57,152.55,40.94]
[1749300296003,26.46384189,152.57,152.55,40.94]
[1749300297307,26.46384189,152.57,152.55,55.2080062]
[1749300297308,0.10128,152.57,152.55,55.2080062]
[1749300297482,0.10128,152.57,152.56,40.94]
[1749300297682,18.75092886,152.57,152.56,40.94]
[1749300298113,0.10128,152.57,152.56,48.65291303]
[1749300298814,0.10128,152.57,152.56,55.20771114]
[1749300301013,0.10128,152.57,152.56,47.49479811]
[1749300301312,0.10128,152.57,152.56,55.20771114]
[1749300302805,0.10128,152.57,152.56,62.92062417]
[1749300302995,0.10128,152.57,152.56,47.49479811]
[1749300303511,0.10128,152.57,152.56,40.94]
[1749300304021,0.10128,152.57,152.54,7.71291303]
[1749300304191,18.64964886,152.56,152.53,6.55593368]
[1749300304385,18.64964886,152.56,152.55,40.94]
[1749300304999,18.64964886,152.56,152.53,7.71291303]
[1749300305192,18.64964886,152.54,152.51,10.86]
[1749300305389,18.64964886,152.54,152.52,40.98]
[1749300305390,18.64964886,152.53,152.52,40.98]
[1749300306291,7.71291303,152.54,152.49,14.27057932]
[1749300306627,18.64964886,152.51,152.48,6.55819521]
[1749300306810,18.64964886,152.51,152.48,14.27110824]
[1749300307313,18.64964886,152.52,152.49,7.71291303]
[1749300308293,18.64964886,152.52,152.48,47.51819521]
[1749300308527,7.71291303,152.49,152.44,6.55995801]
[1749300308726,7.71291303,152.49,152.45,41.06]
[1749300309026,18.64964886,152.5,152.46,7.71291303]
[1749300309191,26.36256189,152.5,152.45,48.75291303]
[1749300310112,18.64964886,152.5,152.46,6.55909746]
[1749300310302,26.36256189,152.5,152.46,6.55909746]
[1749300310703,18.64964886,152.5,152.46,14.27201049]
[1749300311212,26.36256189,152.5,152.45,55.3123397]
[1749300311410,32.92005368,152.5,152.45,41.04]
[1749300311629,7.71291303,152.49,152.45,48.75291303]
[1749300311812,7.71291303,152.49,152.42,32.56047047]
[1749300312011,7.71291303,152.49,152.44,14.27259122]
[1749300312522,14.27075103,152.49,152.44,14.27259122]
[1749300313095,14.37203103,152.49,152.44,14.27259122]
[1749300313358,14.37203103,152.49,152.45,41.08]
[1749300314020,14.37203103,152.49,152.44,55.35282415]
[1749300314530,7.81419303,152.49,152.44,55.35282415]
[1749300315231,0.10128,152.49,152.44,55.35282415]
[1749300315428,7.81419303,152.49,152.44,55.35282415]
[1749300315722,18.64964886,152.47,152.44,55.35282415]
[1749300316110,18.64964886,152.47,152.42,6.56040971]
[1749300316411,18.64964886,152.47,152.41,7.71291303]
[1749300316615,18.64964886,152.47,152.43,7.71291303]
[1749300316906,26.36256189,152.47,152.42,47.66078246]
[1749300317115,7.71291303,152.46,152.42,41.1]
[1749300317318,26.36256189,152.44,152.42,41.1]
[1749300318041,7.71291303,152.44,152.41,41.08]
[1749300318934,7.71291303,152.45,152.41,47.64110707]
[1749300319326,18.64964886,152.43,152.41,41.08]
[1749300320215,18.64964886,152.43,152.4,41.08]
[1749300320618,18.64964886,152.43,152.4,47.64147672]
[1749300322448,7.71291303,152.43,152.39,7.71291303]
[1749300322653,7.71291303,152.43,152.39,48.81291303]
[1749300322832,26.36256189,152.45,152.4,7.71291303]
[1749300323548,7.71291303,152.44,152.4,7.71291303]
[1749300324217,18.64964886,152.45,152.4,7.71291303]
[1749300324451,7.71291303,152.44,152.4,14.27442584]
[1749300326650,26.36256189,152.45,152.4,14.27442584]
[1749300327939,32.9221055,152.45,152.4,14.27442584]
[1749300328144,26.46384189,152.45,152.4,14.27442584]
[1749300333255,26.46384189,152.45,152.41,14.27411704]
[1749300334640,18.64964886,152.44,152.42,7.71291303]
[1749300334842,0.10128,152.45,152.43,7.71291303]
[1749300335356,0.10128,152.45,152.44,14.27287104]
[1749300336225,0.10128,152.45,152.44,7.71291303]
[1749300337561,0.10128,152.45,152.43,55.23319357]
[1749300338174,0.10128,152.45,152.43,48.67291303]
[1749300339460,0.10128,152.45,152.43,55.23327124]
[1749300339681,0.10128,152.45,152.44,7.71291303]
[1749300340350,0.10128,152.45,152.43,55.23327124]
[1749300344353,0.10128,152.45,152.43,47.52035821]
[1749300344688,0.10128,152.45,152.43,55.23327124]
[1749300345390,18.75092886,152.45,152.41,14.27403551]
[1749300345548,18.75092886,152.45,152.38,10.86]
[1749300345549,26.46384189,152.45,152.4,14.27442559]
[1749300345747,26.46384189,152.45,152.42,40.88]
[1749300345956,26.46384189,152.45,152.4,14.27442559]
[1749300346154,33.02338207,152.45,152.41,40.88]
[1749300346380,18.64964886,152.43,152.4,47.44151256]
[1749300347454,26.36256189,152.43,152.4,40.86]
[1749300347642,26.36256189,152.43,152.4,48.57291303]
[1749300347643,18.64964886,152.43,152.4,48.57291303]
[1749300347842,0.10128,152.45,152.41,7.71291303]
[1749300348046,0.10128,152.45,152.44,7.71291303]
[1749300348476,0.10128,152.45,152.44,48.57291303]
[1749300349150,0.10128,152.45,152.44,40.86]
[1749300349355,18.75092886,152.45,152.44,40.86]
[1749300349750,0.10128,152.45,152.44,40.86]
[1749300352383,18.75092886,152.45,152.44,40.86]
[1749300357377,18.75092886,152.45,152.42,40.78]
[1749300358599,14.37393444,152.45,152.42,40.78]
[1749300358895,18.64964886,152.43,152.41,40.76]
[1749300359386,26.36256189,152.43,152.41,40.76]
[1749300359591,18.64964886,152.42,152.41,40.76]
[1749300360770,14.37372949,152.45,152.41,40.76]
[1749300361291,18.64964886,152.43,152.4,6.56139796]
[1749300361591,18.64964886,152.43,152.41,40.76]
[1749300363371,0.10128,152.45,152.42,7.71291303]
[1749300363589,0.10128,152.45,152.41,47.32107416]
[1749300363760,18.75092886,152.45,152.41,55.03398719]
[1749300364701,18.64964886,152.43,152.41,40.76]
[1749300365195,18.64964886,152.43,152.39,6.56184093]
[1749300365502,18.64964886,152.43,152.4,48.51291303]
[1749300366400,18.64964886,152.43,152.4,40.8]
[1749300366800,26.36256189,152.43,152.38,14.27545404]
[1749300367005,7.71291303,152.4,152.34,6.56426414]
[1749300367168,7.71291303,152.4,152.35,48.59291303]
[1749300367370,26.36256189,152.41,152.36,14.27631549]
[1749300367679,18.64964886,152.39,152.36,40.88]
[1749300367878,18.64964886,152.37,152.32,17.332]
[1749300368074,18.64964886,152.37,152.34,7.71291303]
[1749300368278,18.64964886,152.37,152.35,40.9]
[1749300370773,18.64964886,152.37,152.34,6.5642132]
[1749300371079,18.64964886,152.37,152.34,47.4442132]
[1749300371986,18.64964886,152.37,152.34,55.15712623]
[1749300374113,18.64964886,152.37,152.34,47.4442132]
[1749300374272,7.71291303,152.37,152.34,40.88]
[1749300375104,7.71291303,152.37,152.34,40.86]
[1749300375415,7.71291303,152.37,152.33,40.86]
[1749300376484,18.64964886,152.37,152.33,40.86]
[1749300376676,7.71291303,152.36,152.33,40.86]
[1749300377988,1.5421,152.38,152.34,7.71291303]
[1749300377989,20.19174886,152.38,152.34,7.71291303]
[1749300378198,27.90466189,152.38,152.34,14.27679955]
[1749300378777,27.90466189,152.38,152.34,6.56388652]
[1749300379485,0.10128,152.39,152.34,14.27679955]
[1749300379683,0.10128,152.39,152.35,7.71291303]
[1749300380601,0.10128,152.39,152.37,7.71291303]
[1749300380789,0.10128,152.39,152.36,14.27631549]
[1749300381188,0.10128,152.39,152.36,6.56340246]
[1749300381396,0.10128,152.39,152.36,14.27631549]
[1749300382707,0.10128,152.39,152.38,7.71291303]
[1749300382918,0.10128,152.39,152.38,48.65291303]
[1749300384103,0.10128,152.39,152.38,40.94]
[1749300384303,0.10128,152.39,152.38,48.65291303]
[1749300384498,0.10128,152.39,152.38,47.50254101]
[1749300384802,0.10128,152.39,152.38,40.94]
[1749300385381,0.10128,152.39,152.38,47.50254101]
[1749300386216,0.10128,152.39,152.38,55.21545404]
[1749300386712,0.10128,152.39,152.38,47.50254101]
[1749300386918,0.10128,152.39,152.38,40.94]
[1749300392303,0.10128,152.39,152.38,55.21545404]
[1749300393504,0.10128,152.39,152.38,47.50254101]
[1749300394406,0.10128,152.39,152.38,55.21545404]
[1749300400034,0.10128,152.39,152.38,47.50254101]